bitfinex-derivatives/quotes_SOLF0:USTF0_20241101
["timestamp","ask_amount","ask_price","bid_price","bid_amount"]
[1730421181392,2.9629,168.98,168.95,7.28175956]
[1730421181589,7.28175956,169.0,168.95,7.28175956]
[1730421182097,2.9632,168.96,168.94,7.28175956]
[1730421182395,7.28175956,169.0,168.94,7.28175956]
[1730421182784,9.94175956,169.0,168.92,9.94175956]
[1730421182983,8.53645956,168.99,168.92,9.94175956]
[1730421183293,8.53645956,168.99,168.92,7.28175956]
[1730421183592,2.9634,168.96,168.92,7.28175956]
[1730421183793,7.28175956,168.97,168.91,7.28175956]
[1730421184202,1.2982,168.96,168.91,7.28175956]
[1730421184502,1.2982,168.96,168.9,7.28175956]
[1730421185890,2.9635,168.95,168.9,7.28175956]
[1730421186197,1.2982,168.96,168.9,7.28175956]
[1730421186699,7.28175956,168.95,168.9,7.28175956]
[1730421187291,2.9638,168.93,168.9,7.28175956]
[1730421193905,2.9641,168.91,168.9,7.28175956]
[1730421195299,2.9643,168.9,168.89,43.3159561]
[1730421195705,2.9643,168.9,168.88,7.28175956]
[1730421197807,7.28175956,168.94,168.88,7.28175956]
[1730421198708,2.9644,168.9,168.88,7.28175956]
[1730421200506,2.9646,168.89,168.86,7.28175956]
[1730421201711,7.28175956,168.91,168.86,7.28175956]
[1730421201911,2.9646,168.88,168.85,12.90675956]
[1730421202510,2.9646,168.88,168.85,10.24675956]
[1730421203712,2.9648,168.87,168.85,10.24675956]
[1730421203909,7.28175956,168.9,168.85,7.28175956]
[1730421204100,7.28175956,168.9,168.83,7.28175956]
[1730421204514,2.965,168.87,168.83,10.24715956]
[1730421205812,2.965,168.87,168.83,7.28175956]
[1730421206010,1.2937,168.89,168.86,7.28175956]
[1730421206215,11.24145956,168.92,168.88,7.28175956]
[1730421206216,1.2997,168.92,168.88,7.28175956]
[1730421206420,1.3107,168.93,168.88,7.28175956]
[1730421206608,2.9642,168.91,168.88,10.24625956]
[1730421209611,2.9642,168.91,168.88,7.28175956]
[1730421210015,2.9642,168.91,168.86,9.94175956]
[1730421210313,7.28175956,168.92,168.86,9.94175956]
[1730421210715,2.9646,168.89,168.86,9.94175956]
[1730421211116,7.28175956,168.91,168.86,2.66]
[1730421211415,2.9648,168.88,168.85,7.28175956]
[1730421215520,1.319,168.91,168.85,7.28175956]
[1730421215723,2.9648,168.87,168.86,7.28175956]
[1730421215924,1.319,168.91,168.86,7.28175956]
[1730421216126,2.9646,168.89,168.86,10.24665956]
[1730421217122,2.9646,168.88,168.86,10.24665956]
[1730421221532,1.319,168.91,168.86,7.28175956]
[1730421221839,2.9648,168.87,168.86,7.28175956]
[1730421222036,1.319,168.91,168.85,7.28175956]
[1730421222233,2.965,168.86,168.85,7.28175956]
[1730421222736,7.28175956,168.9,168.83,9.94175956]
[1730421223034,2.9653,168.85,168.83,9.94175956]
[1730421223332,7.28175956,168.88,168.83,7.28175956]
[1730421223537,2.9653,168.84,168.82,7.28175956]
[1730421223925,1.3588,168.87,168.82,7.28175956]
[1730421224138,2.9654,168.84,168.82,7.28175956]
[1730421226939,2.966,168.81,168.8,7.28175956]
[1730421227138,2.966,168.81,168.78,10.24805956]
[1730421229232,2.966,168.81,168.75,67.6718671]
[1730421229233,2.966,168.81,168.76,7.28175956]
[1730421229438,7.28175956,168.82,168.76,7.28175956]
[1730421229841,2.9664,168.79,168.76,7.28175956]
[1730421231145,2.9662,168.8,168.78,7.28175956]
[1730421232539,7.28175956,168.84,168.78,7.28175956]
[1730421232540,2.9659,168.81,168.78,7.28175956]
[1730421232734,7.28175956,168.84,168.78,7.28175956]
[1730421233543,2.966,168.8,168.78,7.28175956]
[1730421235245,2.966,168.8,168.77,2.9665]
[1730421240275,2.966,168.8,168.76,7.28175956]
[1730421240473,2.966,168.8,168.76,10.24835956]
[1730421244065,2.9658,168.82,168.76,10.24835956]
[1730421244270,7.28175956,168.84,168.75,67.6718671]
[1730421244575,1.3449,168.81,168.75,70.6386671]
[1730421244777,7.28175956,168.8,168.75,67.6718671]
[1730421245356,2.9665,168.78,168.75,67.6718671]
[1730421245764,2.9665,168.78,168.74,10.24875956]
[1730421246260,2.9665,168.78,168.75,2.9669]
[1730421247543,2.9665,168.78,168.75,10.24865956]
[1730421248451,4.0049,168.81,168.75,7.28175956]
[1730421248753,2.9667,168.77,168.75,7.28175956]
[1730421249148,2.9669,168.75,168.74,7.28175956]
[1730421250152,2.9667,168.77,168.74,10.24885956]
[1730421250753,2.9669,168.76,168.74,7.28175956]
[1730421250949,2.9669,168.76,168.73,2.9672]
[1730421251255,1.2893,168.79,168.72,10.24915956]
[1730421251457,7.28175956,168.78,168.72,10.24915956]
[1730421251756,2.9669,168.75,168.72,10.24915956]
[1730421252254,7.28175956,168.78,168.72,10.24915956]
[1730421252449,7.28175956,168.78,168.73,2.9671]
[1730421254265,2.9668,168.76,168.73,2.9671]
[1730421254460,2.9668,168.76,168.72,10.24915956]
[1730421254860,2.967,168.75,168.72,7.28175956]
[1730421255564,7.28175956,168.78,168.72,7.28175956]
[1730421255777,2.5974,168.79,168.66,7.28175956]
[1730421255778,7.28175956,168.73,168.66,7.28175956]
[1730421256166,2.9678,168.71,168.68,7.28175956]
[1730421256759,2.9675,168.72,168.68,10.24985956]
[1730421257058,9.94175956,168.74,168.68,7.28175956]
[1730421257368,7.28175956,168.72,168.66,7.28175956]
[1730421258160,2.9677,168.71,168.66,10.25005956]
[1730421258360,2.6012,168.73,168.67,7.28175956]
[1730421258954,2.9678,168.7,168.66,10.25025956]
[1730421259775,7.28175956,168.72,168.66,10.25025956]
[1730421259963,2.9677,168.71,168.66,10.25025956]
[1730421260472,2.9676,168.72,168.68,2.968]
[1730421262274,2.9677,168.71,168.67,2.9683]
[1730421262567,7.28175956,168.72,168.66,7.28175956]
[1730421264965,2.9679,168.7,168.66,7.28175956]
[1730421266077,2.968,168.69,168.66,7.28175956]
[1730421268073,2.9679,168.7,168.66,10.25025956]
[1730421271076,2.9686,168.66,168.62,10.25085956]
[1730421271276,7.28175956,168.68,168.53,73.67410706]
[1730421271277,7.28175956,168.69,168.63,7.28175956]
[1730421271971,11.14445956,168.73,168.67,7.28175956]
[1730421272175,6.5427,168.73,168.68,7.28175956]
[1730421272376,6.83,168.73,168.69,2.9679]
[1730421272779,11.14445956,168.73,168.67,7.28175956]
[1730421273183,2.9677,168.71,168.67,10.25005956]
[1730421274179,2.9679,168.7,168.66,2.9684]
[1730421276383,10.24955956,168.71,168.67,2.9682]
[1730421277888,2.9678,168.71,168.67,10.24995956]
[1730421278388,13.82445956,168.73,168.67,7.28175956]
[1730421278588,2.9676,168.72,168.68,2.968]
[1730421278890,13.82445956,168.73,168.68,2.968]
[1730421279192,13.82445956,168.73,168.67,7.28175956]
[1730421279193,2.9677,168.71,168.67,7.28175956]
[1730421279383,2.9677,168.71,168.67,10.25005956]
[1730421281386,13.82445956,168.73,168.67,10.25005956]
[1730421281387,2.9675,168.72,168.68,2.968]
[1730421283995,13.82445956,168.73,168.68,2.968]
[1730421284291,2.9676,168.71,168.68,2.968]
[1730421285997,13.82445956,168.73,168.67,7.28175956]
[1730421286291,2.9677,168.71,168.67,7.28175956]
[1730421286588,2.968,168.69,168.64,9.96175956]
[1730421286795,2.968,168.69,168.64,7.28175956]
[1730421287193,2.968,168.69,168.65,2.9685]
[1730421287788,2.9682,168.68,168.65,2.9685]
[1730421287985,2.9682,168.68,168.65,10.25025956]
[1730421288992,2.9681,168.69,168.66,2.9684]
[1730421289295,7.28175956,168.72,168.66,2.9684]
[1730421289791,2.9678,168.71,168.66,2.9684]
[1730421289998,7.28175956,168.72,168.66,2.9684]
[1730421291401,2.9681,168.69,168.66,2.9684]
[1730421292486,6.5427,168.73,168.67,7.28175956]
[1730421293097,2.9675,168.72,168.68,2.968]
[1730421293695,2.6012,168.73,168.68,7.28175956]
[1730421294302,2.9675,168.72,168.68,10.24985956]
[1730421295099,2.9676,168.71,168.68,10.24985956]
[1730421295489,2.6012,168.73,168.68,10.24985956]
[1730421295690,2.9676,168.72,168.68,10.24985956]
[1730421297104,2.9679,168.7,168.66,10.25015956]
[1730421297289,2.9679,168.7,168.66,7.28175956]
[1730421297999,2.9677,168.71,168.67,2.9682]
[1730421298996,2.9677,168.71,168.66,7.28175956]
[1730421299199,2.9677,168.71,168.68,2.9681]
[1730421301701,2.9675,168.72,168.69,2.968]
[1730421301899,2.6012,168.73,168.71,7.28175956]
[1730421302100,7.28175956,168.75,168.71,7.28175956]
[1730421303105,2.9672,168.74,168.71,7.28175956]
[1730421303405,9.98175956,168.77,168.72,7.28175956]
[1730421303708,2.967,168.75,168.72,7.28175956]
[1730421304608,2.9668,168.76,168.72,7.28175956]
[1730421304804,5.4171,168.78,168.75,7.28175956]
[1730421304805,2.7171,168.78,168.75,7.28175956]
[1730421305306,5.6836,168.78,168.75,7.28175956]
[1730421306412,5.6836,168.78,168.74,10.24875956]
[1730421307210,2.7171,168.78,168.75,2.9668]
[1730421310021,2.9664,168.78,168.75,10.24855956]
[1730421310702,2.966,168.81,168.77,2.9666]
[1730421310904,2.966,168.81,168.77,10.24835956]
[1730421311910,2.9661,168.8,168.77,10.24835956]
[1730421312513,10.24755956,168.82,168.78,2.9664]
[1730421312914,2.9658,168.82,168.78,2.9664]
[1730421314823,2.6618,168.83,168.8,7.28175956]
[1730421314824,5.6274,168.83,168.8,7.28175956]
[1730421315419,5.6274,168.83,168.79,2.9661]
[1730421315919,2.9657,168.82,168.79,2.9661]
[1730421317710,2.9657,168.82,168.78,10.24815956]
[1730421322018,7.28175956,168.82,168.76,7.28175956]
[1730421322322,7.28175956,168.81,168.76,7.28175956]
[1730421322523,2.9663,168.79,168.76,7.28175956]
[1730421322712,7.28175956,168.81,168.76,7.28175956]
[1730421323317,2.9661,168.8,168.77,2.9666]
[1730421326822,7.28175956,168.81,168.76,7.28175956]
[1730421327031,2.9662,168.79,168.76,10.24845956]
[1730421327523,2.9665,168.78,168.75,2.9668]
[1730421327717,7.28175956,168.8,168.74,7.28175956]
[1730421327918,2.7,168.82,168.71,7.28175956]
[1730421327919,7.28175956,168.78,168.71,7.28175956]
[1730421328225,2.9668,168.76,168.73,2.9672]
[1730421328423,7.28175956,168.76,168.7,7.28175956]
[1730421328828,10.04975956,168.77,168.71,7.28175956]
[1730421329029,2.768,168.77,168.71,7.28175956]
[1730421329426,2.9669,168.76,168.72,2.9673]
[1730421330227,10.04975956,168.77,168.71,7.28175956]
[1730421330426,7.28175956,168.76,168.68,7.28175956]
[1730421330928,2.9677,168.71,168.68,7.28175956]
[1730421331129,2.9677,168.71,168.67,30.74144949]
[1730421331130,2.9677,168.71,168.67,10.25005956]
[1730421331824,2.9678,168.7,168.67,10.25005956]
[1730421333035,2.968,168.69,168.67,7.28175956]
[1730421334527,7.28175956,168.7,168.63,7.28175956]
[1730421335332,2.9682,168.68,168.64,2.9687]
[1730421335531,7.28175956,168.7,168.64,2.9687]
[1730421336637,2.9683,168.68,168.64,2.9687]
[1730421337332,2.9683,168.68,168.65,2.9686]
[1730421339536,2.9684,168.67,168.65,2.9686]
[1730421346638,2.6359,168.71,168.65,7.28175956]
[1730421346839,10.02175956,168.74,168.68,7.28175956]
[1730421347139,2.9676,168.72,168.69,2.9679]
[1730421347444,2.9676,168.72,168.68,7.28175956]
[1730421347942,10.02175956,168.74,168.68,7.28175956]
[1730421348137,2.9673,168.73,168.7,2.9678]
[1730421348338,10.02175956,168.74,168.69,7.28175956]
[1730421348642,5.7072,168.74,168.71,2.9675]
[1730421348945,2.5179,168.76,168.71,7.28175956]
[1730421349440,2.967,168.75,168.71,10.24925956]
[1730421350542,2.5179,168.76,168.71,10.24925956]
[1730421350742,2.9671,168.74,168.71,10.24925956]
[1730421351740,2.9671,168.74,168.71,7.28175956]
[1730421353038,2.9671,168.74,168.71,10.24935956]
[1730421353644,2.9671,168.74,168.71,7.28175956]
[1730421356153,2.9674,168.73,168.69,10.24965956]
[1730421358446,2.9672,168.74,168.71,2.9675]
[1730421358645,2.5179,168.76,168.7,7.28175956]
[1730421358854,2.5179,168.76,168.72,2.9674]
[1730421358855,2.967,168.75,168.72,2.9674]
[1730421359058,2.967,168.75,168.7,7.28175956]
[1730421359562,2.967,168.75,168.71,2.9675]
[1730421360662,2.9671,168.74,168.71,2.9675]
[1730421360859,2.5179,168.76,168.7,7.28175956]
[1730421361067,2.9671,168.75,168.7,7.28175956]
[1730421361462,2.9671,168.75,168.71,2.9675]
[1730421362868,2.9672,168.74,168.71,2.9675]
[1730421363170,2.9672,168.74,168.7,7.28175956]
[1730421363171,2.5179,168.76,168.68,2.74]
[1730421363355,9.79965956,168.76,168.69,7.28175956]
[1730421364062,9.79965956,168.76,168.69,10.24955956]
[1730421364263,7.28175956,168.74,168.68,2.74]
[1730421364466,7.28175956,168.74,168.67,7.28175956]
[1730421364667,7.28175956,168.74,168.67,10.24995956]
[1730421365566,2.9677,168.71,168.68,2.9681]
[1730421370073,2.968,168.69,168.67,10.24995956]
[1730421370276,2.968,168.69,168.67,7.28175956]
[1730421371171,2.968,168.69,168.66,10.25015956]
[1730421371361,2.9678,168.71,168.66,10.25015956]
[1730421371567,7.28175956,168.72,168.66,10.25015956]
[1730421372275,2.9681,168.69,168.66,10.25015956]
[1730421373671,2.9681,168.69,168.67,2.9683]
[1730421398796,2.9678,168.7,168.67,2.9683]
[1730421399095,2.76,168.73,168.68,7.28175956]
[1730421399287,5.7273,168.73,168.68,7.28175956]
[1730421400191,2.9674,168.72,168.7,2.9677]
[1730421401390,7.28175956,168.74,168.68,7.28175956]
[1730421401700,9.79965956,168.76,168.69,7.28175956]
[1730421403303,12.76645956,168.76,168.73,2.9671]
[1730421403995,12.76645956,168.76,168.73,2.88963321]
[1730421408403,2.9669,168.75,168.72,2.9673]
[1730421408696,7.28175956,168.74,168.69,7.28175956]
[1730421408897,9.79965956,168.76,168.71,7.28175956]
[1730421409102,2.5179,168.76,168.71,7.28175956]
[1730421409495,2.9669,168.76,168.73,2.9671]
[1730421409696,7.28175956,168.77,168.72,7.28175956]
[1730421411302,2.9667,168.76,168.72,7.28175956]
[1730421412398,2.9667,168.76,168.73,2.9672]
[1730421415402,2.9672,168.74,168.71,7.28175956]
[1730421415610,7.28175956,168.76,168.71,7.28175956]
[1730421415801,2.967,168.75,168.72,2.9673]
[1730421417202,2.967,168.75,168.73,2.9673]
[1730421421006,7.28175956,168.77,168.72,7.28175956]
[1730421421206,7.28175956,168.77,168.71,2.9675]
[1730421422814,2.9673,168.73,168.71,2.9675]
[1730421423216,2.9674,168.72,168.7,12.90955956]
[1730421425425,2.9679,168.7,168.68,2.9681]
[1730421425817,2.9679,168.7,168.67,7.28175956]
[1730421426124,2.9679,168.7,168.68,2.9681]
[1730421426716,7.28175956,168.74,168.69,2.968]
[1730421427321,2.9676,168.72,168.69,2.968]
[1730421427624,7.28175956,168.74,168.69,2.968]
[1730421427823,2.9676,168.72,168.69,2.968]
[1730421428719,2.9675,168.72,168.67,10.25005956]
[1730421428918,7.28175956,168.74,168.67,10.25005956]
[1730421429426,2.968,168.7,168.67,10.25005956]
[1730421430832,2.9683,168.68,168.65,10.25035956]
[1730421431026,7.28175956,168.7,168.66,1.48500534]
[1730421431228,7.28175956,168.7,168.65,10.25035956]
[1730421431434,2.9684,168.67,168.65,10.25035956]
[1730421432023,2.9684,168.67,168.65,2.9686]
[1730421433225,2.9684,168.67,168.6,27.78318675]
[1730421433226,7.28175956,168.67,168.61,7.28175956]
[1730421433424,1.2978,168.66,168.61,7.28175956]
[1730421434326,7.28175956,168.65,168.59,10.25145956]
[1730421434921,2.9692,168.63,168.59,10.25145956]
[1730421435123,7.28175956,168.65,168.59,10.25145956]
[1730421435319,7.28175956,168.61,168.54,7.28175956]
[1730421435520,2.9701,168.57,168.55,1.48576163]
[1730421435722,2.9701,168.57,168.51,7.28175956]
[1730421435723,10.25185956,168.57,168.51,7.28175956]
[1730421435926,7.28175956,168.57,168.52,6.83387288]
[1730421436134,7.28175956,168.57,168.53,3.86307288]
[1730421436333,2.9706,168.55,168.54,1.48579726]
[1730421436633,2.9706,168.55,168.51,7.28175956]
[1730421436833,2.9706,168.55,168.52,1.48584506]
[1730421437032,2.9706,168.55,168.51,7.28175956]
[1730421437033,7.28175956,168.57,168.53,1.48584506]
[1730421437224,7.28175956,168.57,168.5,10.25305956]
[1730421437427,2.66,168.56,168.5,7.28175956]
[1730421437627,2.66,168.56,168.52,10.25255956]
[1730421437628,2.9704,168.56,168.52,10.25255956]
[1730421437928,2.66,168.59,168.54,7.28175956]
[1730421438230,7.28175956,168.6,168.54,7.28175956]
[1730421438231,9.94175956,168.6,168.54,7.28175956]
[1730421438434,7.28175956,168.6,168.54,7.28175956]
[1730421438730,7.28175956,168.6,168.55,7.28175956]
[1730421438949,10.25135956,168.6,168.56,2.9701]
[1730421439824,5.6295,168.61,168.57,2.97]
[1730421440035,2.9695,168.61,168.57,2.97]
[1730421441734,2.9696,168.6,168.57,2.97]
[1730421442040,9.94175956,168.62,168.57,2.9701]
[1730421442735,2.9697,168.6,168.56,2.9701]
[1730421443130,10.25145956,168.6,168.56,2.9701]
[1730421443330,10.25145956,168.6,168.55,7.28175956]
[1730421443638,10.25145956,168.6,168.57,2.9701]
[1730421444133,9.94175956,168.62,168.58,2.9698]
[1730421444341,7.28175956,168.62,168.57,7.28175956]
[1730421444731,10.25105956,168.62,168.58,2.9698]
[1730421445641,7.28175956,168.62,168.57,7.28175956]
[1730421445843,2.66,168.64,168.58,7.28175956]
[1730421446027,1.3219,168.65,168.6,7.28175956]
[1730421446231,7.28175956,168.66,168.63,2.969]
[1730421446733,7.28175956,168.69,168.63,7.28175956]
[1730421446942,10.24985956,168.69,168.65,2.9686]
[1730421447638,2.9682,168.68,168.65,2.9686]
[1730421447829,7.28175956,168.69,168.63,7.28175956]
[1730421448034,7.28175956,168.69,168.65,2.9686]
[1730421448430,2.9683,168.68,168.65,2.9687]
[1730421449031,7.28175956,168.69,168.63,7.28175956]
[1730421449227,7.28175956,168.68,168.63,2.9689]
[1730421450036,2.9684,168.67,168.63,2.9689]
[1730421452545,2.9687,168.66,168.62,10.25085956]
[1730421453250,2.9688,168.65,168.62,7.28175956]
[1730421454331,2.9688,168.65,168.62,10.25075956]
[1730421454529,2.9688,168.65,168.62,7.28175956]
[1730421455138,2.9688,168.65,168.62,10.25085956]
[1730421456639,2.9688,168.65,168.63,2.969]
[1730421457743,7.28175956,168.68,168.62,7.28175956]
[1730421458048,2.9688,168.65,168.62,7.28175956]
[1730421459347,2.9688,168.65,168.63,2.969]
[1730421463143,10.00175956,168.69,168.62,7.28175956]
[1730421463449,2.9685,168.66,168.64,2.9688]
[1730421464252,10.00175956,168.69,168.62,7.28175956]
[1730421464439,2.9687,168.65,168.63,2.969]
[1730421467051,7.28175956,168.66,168.58,7.28175956]
[1730421467446,2.9691,168.63,168.6,2.9694]
[1730421467846,7.28175956,168.66,168.6,2.9694]
[1730421468044,2.9688,168.65,168.6,2.9694]
[1730421468355,7.28175956,168.66,168.6,2.9694]
[1730421468556,2.9692,168.63,168.6,2.9694]
[1730421476959,2.9697,168.6,168.57,2.97]
[1730421479159,2.9697,168.6,168.56,7.28175956]
[1730421479455,2.9697,168.6,168.58,2.9699]
[1730421480357,2.9697,168.6,168.53,4.0737]
[1730421480358,2.97,168.58,168.55,2.9703]
[1730421481661,2.97,168.58,168.56,2.9702]
[1730421484260,2.9698,168.59,168.56,2.9702]
[1730421485966,10.00175956,168.61,168.56,2.9702]
[1730421486260,7.28175956,168.6,168.56,2.9702]
[1730421486463,2.9698,168.59,168.56,2.9702]
[1730421489164,7.28175956,168.6,168.53,7.28175956]
[1730421489364,2.97,168.58,168.55,2.9704]
[1730421492266,2.97,168.58,168.56,2.9702]
[1730421493467,2.97,168.58,168.55,2.9704]
[1730421501590,2.9701,168.57,168.55,2.9704]
[1730421503284,7.28175956,168.56,168.5,9.98175956]
[1730421503583,2.9705,168.55,168.52,2.9709]
[1730421504384,7.28175956,168.55,168.49,7.28175956]
[1730421504583,2.9709,168.53,168.51,2.9711]
[1730421505793,2.9707,168.54,168.51,2.9711]
[1730421508287,2.9709,168.53,168.5,2.9712]
[1730421509196,7.28175956,168.52,168.47,7.28175956]
[1730421509397,1.307,168.63,168.5,2.9712]
[1730421509398,2.9708,168.53,168.5,2.9712]
[1730421509597,2.7,168.55,168.48,7.28175956]
[1730421509990,7.28175956,168.56,168.47,2.7]
[1730421510297,9.98175956,168.58,168.52,7.28175956]
[1730421510796,2.9703,168.57,168.53,2.9707]
[1730421512085,2.9704,168.56,168.52,10.25255956]
[1730421512285,2.9704,168.56,168.52,7.28175956]
[1730421513301,9.98175956,168.58,168.52,7.28175956]
[1730421513999,2.9703,168.56,168.53,2.9707]
[1730421515500,2.9703,168.56,168.52,7.28175956]
[1730421518205,9.94175956,168.58,168.52,7.28175956]
[1730421518405,2.9705,168.55,168.52,7.28175956]
[1730421519007,9.94175956,168.58,168.52,7.28175956]
[1730421519303,7.28175956,168.56,168.5,7.28175956]
[1730421519800,2.9709,168.53,168.5,7.28175956]
[1730421520702,2.9711,168.52,168.5,7.28175956]
[1730421523906,2.9709,168.53,168.5,7.28175956]
[1730421524307,7.28175956,168.56,168.5,7.28175956]
[1730421525908,2.9706,168.55,168.5,7.28175956]
[1730421526107,7.28175956,168.56,168.5,7.28175956]
[1730421526607,2.9711,168.51,168.48,7.28175956]
[1730421526906,9.94175956,168.54,168.48,7.28175956]
[1730421527302,2.9716,168.49,168.48,7.28175956]
[1730421536220,2.9716,168.49,168.47,7.28175956]
[1730421539426,7.28175956,168.53,168.45,7.28175956]
[1730421539623,2.9719,168.47,168.45,10.25395956]
[1730421541118,7.28175956,168.51,168.45,7.28175956]
[1730421541324,2.66,168.54,168.43,7.28175956]
[1730421541325,2.9724,168.45,168.43,7.28175956]
[1730421544126,2.972,168.47,168.44,2.9723]
[1730421544323,2.972,168.47,168.45,7.28175956]
[1730421544531,9.94175956,168.53,168.46,7.28175956]
[1730421544829,9.94175956,168.53,168.46,10.25365956]
[1730421545229,2.9717,168.48,168.46,10.25365956]
[1730421548633,2.9714,168.5,168.46,7.28175956]
[1730421548833,2.9714,168.5,168.48,7.28175956]
[1730421550431,2.9714,168.5,168.41,20.41367856]
[1730421550432,7.28175956,168.5,168.45,7.28175956]
[1730421551028,2.9718,168.48,168.46,2.972]
[1730421551436,7.28175956,168.51,168.47,7.28175956]
[1730421552238,2.9717,168.48,168.47,7.28175956]
[1730421555139,7.28175956,168.51,168.45,7.28175956]
[1730421555335,7.28175956,168.51,168.45,10.25385956]
[1730421555840,2.9718,168.48,168.46,2.9719]
[1730421556239,7.28175956,168.51,168.47,7.28175956]
[1730421556542,9.94175956,168.53,168.47,7.28175956]
[1730421557242,9.94175956,168.53,168.48,2.9716]
[1730421557243,2.9714,168.5,168.48,2.9716]
[1730421557544,2.9714,168.5,168.47,7.28175956]
[1730421557730,2.9714,168.5,168.47,10.25355956]
[1730421558947,2.9714,168.5,168.48,2.9717]
[1730421559442,2.9714,168.5,168.48,10.25345956]
[1730421561145,9.94175956,168.53,168.47,7.28175956]
[1730421561442,2.9714,168.5,168.47,10.25345956]
[1730421561641,7.28175956,168.5,168.44,7.28175956]
[1730421561833,7.28175956,168.5,168.41,17.73367856]
[1730421561834,7.28175956,168.48,168.42,7.28175956]
[1730421562445,7.28175956,168.5,168.44,7.28175956]
[1730421562739,9.94175956,168.52,168.45,7.28175956]
[1730421563142,2.9718,168.48,168.46,2.972]
[1730421563542,9.94175956,168.52,168.45,7.28175956]
[1730421563941,2.9718,168.48,168.45,10.25395956]
[1730421564342,9.94175956,168.52,168.47,7.28175956]
[1730421564542,2.9716,168.49,168.47,7.28175956]
[1730421564846,9.94175956,168.52,168.47,7.28175956]
[1730421565250,2.9717,168.48,168.47,7.28175956]
[1730421565638,2.9711,168.52,168.47,10.25355956]
[1730421565848,9.94175956,168.53,168.47,10.25355956]
[1730421566149,9.94175956,168.53,168.47,7.28175956]
[1730421566649,2.9711,168.52,168.48,7.28175956]
[1730421566947,2.9711,168.52,168.49,2.9714]
[1730421567543,2.9711,168.52,168.49,2.9715]
[1730421567945,2.9708,168.53,168.51,2.9711]
[1730421572147,2.9708,168.53,168.5,10.25295956]
[1730421574146,2.9713,168.5,168.49,7.28175956]
[1730421574348,2.9713,168.5,168.47,10.25345956]
[1730421575356,2.9716,168.49,168.47,7.28175956]
[1730421576055,2.9716,168.49,168.47,10.25355956]
[1730421577151,2.9717,168.48,168.46,2.972]
[1730421579247,2.9715,168.49,168.46,2.972]
[1730421579847,2.9719,168.47,168.44,10.25405956]
[1730421580355,2.9716,168.49,168.44,10.25395956]
[1730421580559,7.28175956,168.5,168.44,10.25395956]
[1730421580755,7.28175956,168.5,168.44,7.28175956]
[1730421581154,7.28175956,168.5,168.46,2.9719]
[1730421581462,7.28175956,168.52,168.46,10.25365956]
[1730421582256,2.9716,168.49,168.46,10.25365956]
[1730421583366,7.28175956,168.54,168.47,7.28175956]
[1730421583555,2.9713,168.51,168.48,2.9716]
[1730421583754,2.9713,168.51,168.47,7.28175956]
[1730421583953,2.9713,168.51,168.48,2.9716]
[1730421584457,2.9711,168.52,168.49,10.25315956]
[1730421585355,9.96175956,168.55,168.49,10.25315956]
[1730421585650,2.9711,168.52,168.49,10.25315956]
[1730421586058,9.96175956,168.55,168.49,10.25315956]
[1730421586259,2.9711,168.51,168.49,10.25315956]
[1730421586856,2.9712,168.51,168.49,7.28175956]
[1730421587661,2.9713,168.5,168.47,7.28175956]
[1730421588053,7.28175956,168.53,168.47,7.28175956]
[1730421588463,2.9712,168.51,168.48,2.9715]
[1730421588667,7.28175956,168.54,168.48,7.28175956]
[1730421589362,2.9711,168.52,168.49,2.9714]
[1730421589570,7.28175956,168.54,168.49,2.9714]
[1730421589961,2.9711,168.51,168.48,10.25325956]
[1730421590668,2.9711,168.51,168.48,7.28175956]
[1730421591262,2.9711,168.51,168.49,2.9715]
[1730421593565,2.9711,168.52,168.49,2.9715]
[1730421596874,2.9715,168.5,168.47,7.28175956]
[1730421597077,7.28175956,168.54,168.47,7.28175956]
[1730421597664,7.28175956,168.54,168.48,7.28175956]
[1730421597878,2.9709,168.53,168.49,2.9715]
[1730421598077,7.28175956,168.54,168.48,7.28175956]
[1730421598572,2.9713,168.51,168.48,10.25325956]
[1730421599173,2.9713,168.51,168.48,7.28175956]
[1730421599475,2.9713,168.51,168.49,2.9714]
[1730421601175,2.68,168.55,168.49,2.9714]
[1730421601377,2.971,168.52,168.5,2.9713]
[1730421601966,2.9709,168.53,168.5,2.9713]
[1730421602174,2.68,168.55,168.5,2.9713]
[1730421602568,2.9711,168.52,168.5,2.9713]